[Event "Titled Tuesday Blitz December 20 Late 2022"]
[White "Martinez Reyes, Pedro Ramon"]
[Black "Nasuta, Grzegorz"]
[WhiteFideId "3901807"]
[BlackFideId "1141686"]
[WhiteElo "2354"]
[BlackElo "2441"]
[Result "0-1"]
[Round "02"]
[TimeControl "180+1"]
[Date "2022.12.21"]
[WhiteClock "0:00:03"]
[BlackClock "0:00:08"]

1. e4 {[%clk 0:02:56]}  c5 {[%clk 0:03:00]} 2. Nf3 {[%clk 0:02:54]}  d6 {[%clk 0:03:00]} 3. Bb5+ {[%clk 0:02:52]}  Bd7 {[%clk 0:03:00]} 4. Bxd7+ {[%clk 0:02:51]}  Nxd7 {[%clk 0:03:01]} 5. O-O {[%clk 0:02:50]}  Ngf6 {[%clk 0:03:01]} 6. Re1 {[%clk 0:02:51]}  e6 {[%clk 0:03:02]} 7. c3 {[%clk 0:02:51]}  Be7 {[%clk 0:03:01]} 8. d4 {[%clk 0:02:51]}  cxd4 {[%clk 0:03:02]} 9. cxd4 {[%clk 0:02:52]}  d5 {[%clk 0:03:02]} 10. e5 {[%clk 0:02:53]}  Ne4 {[%clk 0:03:03]} 11. Nbd2 {[%clk 0:02:50]}  Nxd2 {[%clk 0:03:03]} 12. Bxd2 {[%clk 0:02:51]}  O-O {[%clk 0:03:02]} 13. Rc1 {[%clk 0:02:52]}  Qb6 {[%clk 0:02:59]} 14. Bc3 {[%clk 0:02:50]}  Rac8 {[%clk 0:02:59]} 15. h4 {[%clk 0:02:48]}  h6 {[%clk 0:02:58]} 16. h5 {[%clk 0:02:45]}  Rc6 {[%clk 0:02:55]} 17. Nh2 {[%clk 0:02:44]}  Rfc8 {[%clk 0:02:55]} 18. Re3 {[%clk 0:02:27]}  Bg5 {[%clk 0:02:51]} 19. Rg3 {[%clk 0:02:24]}  Bxc1 {[%clk 0:02:41]} 20. Qxc1 {[%clk 0:02:23]}  Kf8 {[%clk 0:01:48]} 21. Qf4 {[%clk 0:02:11]}  Rxc3 {[%clk 0:01:43]} 22. bxc3 {[%clk 0:02:08]}  Qb1+ {[%clk 0:01:41]} 23. Nf1 {[%clk 0:02:08]}  Qe4 {[%clk 0:00:57]} 24. Qc1 {[%clk 0:01:55]}  Qxd4 {[%clk 0:00:55]} 25. Qa3+ {[%clk 0:01:36]}  Qc5 {[%clk 0:00:55]} 26. Qa4 {[%clk 0:01:37]}  Nxe5 {[%clk 0:00:53]} 27. Qf4 {[%clk 0:01:25]}  Qc7 {[%clk 0:00:44]} 28. Ne3 {[%clk 0:01:14]}  Nd7 {[%clk 0:00:40]} 29. Qg4 {[%clk 0:01:13]}  Qe5 {[%clk 0:00:40]} 30. Qb4+ {[%clk 0:00:57]}  Nc5 {[%clk 0:00:34]} 31. Nc2 {[%clk 0:00:20]}  Kg8 {[%clk 0:00:30]} 32. Nd4 {[%clk 0:00:20]}  Ne4 {[%clk 0:00:26]} 33. Re3 {[%clk 0:00:17]}  Qc7 {[%clk 0:00:16]} 34. f3 {[%clk 0:00:16]}  Nf6 {[%clk 0:00:16]} 35. Nb5 {[%clk 0:00:14]}  Qb6 {[%clk 0:00:15]} 36. Kf2 {[%clk 0:00:10]}  Rc4 {[%clk 0:00:11]} 37. Qb2 {[%clk 0:00:08]}  Rc5 {[%clk 0:00:11]} 38. a4 {[%clk 0:00:07]}  a6 {[%clk 0:00:11]} 39. Qb4 {[%clk 0:00:05]}  axb5 {[%clk 0:00:11]} 40. a5 {[%clk 0:00:06]}  Qc6 {[%clk 0:00:11]} 41. a6 {[%clk 0:00:03]}  bxa6 {[%clk 0:00:11]} 42. Qa5 {[%clk 0:00:03]}  Qc8 {[%clk 0:00:08]} 43. Qxa6 {[%clk 0:00:03]}  Qxa6 {[%clk 0:00:08]} 0-1


[Site "https://www.chess.com"]

[Event "Titled Tuesday Blitz December 20 Late 2022"]
[White "Matthes, Aaron"]
[Black "Manukyan, Sargis A."]
[WhiteFideId "16227310"]
[BlackFideId "13303970"]
[WhiteElo "2323"]
[BlackElo "2187"]
[Result "1-0"]
[Round "02"]
[TimeControl "180+1"]
[Date "2022.12.21"]
[WhiteClock "0:00:19"]
[BlackClock "0:00:12"]

1. d4 {[%clk 0:02:58]}  a6 {[%clk 0:03:00]} 2. Bf4 {[%clk 0:02:58]}  g6 {[%clk 0:02:59]} 3. Nc3 {[%clk 0:02:57]}  Bg7 {[%clk 0:02:59]} 4. e4 {[%clk 0:02:56]}  c5 {[%clk 0:02:58]} 5. Be3 {[%clk 0:02:52]}  cxd4 {[%clk 0:02:47]} 6. Bxd4 {[%clk 0:02:53]}  e5 {[%clk 0:02:42]} 7. Be3 {[%clk 0:02:53]}  Ne7 {[%clk 0:02:42]} 8. Nf3 {[%clk 0:02:49]}  Nbc6 {[%clk 0:02:39]} 9. Bc4 {[%clk 0:02:39]}  b5 {[%clk 0:02:34]} 10. Bb3 {[%clk 0:02:38]}  O-O {[%clk 0:02:32]} 11. a3 {[%clk 0:02:33]}  Bb7 {[%clk 0:02:30]} 12. Bc5 {[%clk 0:02:31]}  Rc8 {[%clk 0:02:17]} 13. O-O {[%clk 0:02:25]}  Na5 {[%clk 0:02:07]} 14. Bd6 {[%clk 0:02:19]}  Nxb3 {[%clk 0:01:31]} 15. cxb3 {[%clk 0:02:20]}  f6 {[%clk 0:01:31]} 16. Qd2 {[%clk 0:02:13]}  Rf7 {[%clk 0:01:29]} 17. Rfd1 {[%clk 0:02:04]}  Qb6 {[%clk 0:01:24]} 18. Bxe7 {[%clk 0:02:00]}  Rxe7 {[%clk 0:01:23]} 19. Nd5 {[%clk 0:02:01]}  Bxd5 {[%clk 0:01:22]} 20. Qxd5+ {[%clk 0:02:02]}  Kh8 {[%clk 0:01:22]} 21. Rac1 {[%clk 0:01:58]}  Rxc1 {[%clk 0:00:57]} 22. Rxc1 {[%clk 0:01:59]}  Qb8 {[%clk 0:00:56]} 23. b4 {[%clk 0:01:48]}  h5 {[%clk 0:00:55]} 24. Qc5 {[%clk 0:01:36]}  Re6 {[%clk 0:00:48]} 25. Qd5 {[%clk 0:01:23]}  Rd6 {[%clk 0:00:43]} 26. Qf7 {[%clk 0:01:22]}  Kh7 {[%clk 0:00:42]} 27. Nh4 {[%clk 0:01:21]}  f5 {[%clk 0:00:32]} 28. exf5 {[%clk 0:01:20]}  g5 {[%clk 0:00:32]} 29. Nf3 {[%clk 0:01:11]}  g4 {[%clk 0:00:26]} 30. Nxe5 {[%clk 0:01:04]}  Rh6 {[%clk 0:00:19]} 31. Nxd7 {[%clk 0:00:48]}  Qf4 {[%clk 0:00:18]} 32. Rd1 {[%clk 0:00:39]}  Rd6 {[%clk 0:00:17]} 33. Nf8+ {[%clk 0:00:35]}  Kh8 {[%clk 0:00:17]} 34. Ng6+ {[%clk 0:00:35]}  Kh7 {[%clk 0:00:17]} 35. Re1 {[%clk 0:00:18]}  Rf6 {[%clk 0:00:17]} 36. Qxf6 {[%clk 0:00:14]}  Bxf6 {[%clk 0:00:16]} 37. Nxf4 {[%clk 0:00:15]}  Bg5 {[%clk 0:00:14]} 38. Nd5 {[%clk 0:00:15]}  Kg7 {[%clk 0:00:12]} 39. Re6 {[%clk 0:00:16]}  Kf7 {[%clk 0:00:12]} 40. Rxa6 {[%clk 0:00:16]}  h4 {[%clk 0:00:12]} 41. Nc3 {[%clk 0:00:16]}  h3 {[%clk 0:00:12]} 42. Nxb5 {[%clk 0:00:16]}  Bf4 {[%clk 0:00:12]} 43. Nd4 {[%clk 0:00:16]}  Be5 {[%clk 0:00:12]} 44. Ne6 {[%clk 0:00:17]}  Bxb2 {[%clk 0:00:12]} 45. b5 {[%clk 0:00:18]}  Bxa3 {[%clk 0:00:12]} 46. b6 {[%clk 0:00:18]}  Bd6 {[%clk 0:00:12]} 47. b7 {[%clk 0:00:19]}  Kf6 {[%clk 0:00:12]} 48. Rb6 {[%clk 0:00:19]}  Bb8 {[%clk 0:00:13]} 49. Nc5+ {[%clk 0:00:18]}  Kxf5 {[%clk 0:00:14]} 50. Nd7 {[%clk 0:00:19]}  Bc7 {[%clk 0:00:14]} 51. b8=Q {[%clk 0:00:19]}  g3 {[%clk 0:00:14]} 52. Qf8+ {[%clk 0:00:18]}  Ke4 {[%clk 0:00:13]} 53. Re6+ {[%clk 0:00:18]}  Kd5 {[%clk 0:00:13]} 54. Qc5+ {[%clk 0:00:17]}  Kxe6 {[%clk 0:00:13]} 55. Qxc7 {[%clk 0:00:18]}  gxf2+ {[%clk 0:00:12]} 56. Kxf2 {[%clk 0:00:19]}  hxg2 {[%clk 0:00:13]} 57. Kxg2 {[%clk 0:00:19]}  Ke7 {[%clk 0:00:13]} 58. Nc5+ {[%clk 0:00:20]}  Kf6 {[%clk 0:00:14]} 59. Qd6+ {[%clk 0:00:20]}  Kg5 {[%clk 0:00:13]} 60. Qe5+ {[%clk 0:00:20]}  Kh4 {[%clk 0:00:12]} 61. Qg7 {[%clk 0:00:19]}  Kh5 {[%clk 0:00:12]} 62. Kf3 {[%clk 0:00:19]}  Kh4 {[%clk 0:00:12]} 63. Qg4# {[%clk 0:00:19]} 1-0


[Site "https://www.chess.com"]

[Event "Titled Tuesday Blitz December 20 Late 2022"]
[White "Melikhov, Evgeny V."]
[Black "Domingo Nunez, Ruben"]
[WhiteFideId "4122046"]
[BlackFideId "22245570"]
[WhiteElo "2169"]
[BlackElo "2406"]
[Result "0-1"]
[Round "02"]
[TimeControl "180+1"]
[Date "2022.12.21"]
[WhiteClock "0:00:01"]
[BlackClock "0:00:17"]

1. d4 {[%clk 0:02:56]}  g6 {[%clk 0:02:58]} 2. c4 {[%clk 0:02:55]}  Bg7 {[%clk 0:02:59]} 3. Nc3 {[%clk 0:02:56]}  d6 {[%clk 0:02:59]} 4. e4 {[%clk 0:02:56]}  Nd7 {[%clk 0:03:00]} 5. f3 {[%clk 0:02:53]}  e5 {[%clk 0:02:58]} 6. d5 {[%clk 0:02:52]}  h5 {[%clk 0:02:58]} 7. Be3 {[%clk 0:02:49]}  h4 {[%clk 0:02:57]} 8. Qd2 {[%clk 0:02:48]}  Bh6 {[%clk 0:02:57]} 9. O-O-O {[%clk 0:02:46]}  a5 {[%clk 0:02:54]} 10. Nge2 {[%clk 0:02:37]}  Nc5 {[%clk 0:02:50]} 11. Kb1 {[%clk 0:02:34]}  Bxe3 {[%clk 0:02:49]} 12. Qxe3 {[%clk 0:02:34]}  f6 {[%clk 0:02:48]} 13. Nc1 {[%clk 0:02:32]}  Bd7 {[%clk 0:02:47]} 14. Nb5 {[%clk 0:02:22]}  Nh6 {[%clk 0:02:43]} 15. Be2 {[%clk 0:02:08]}  f5 {[%clk 0:02:42]} 16. Nb3 {[%clk 0:01:52]}  Nxb3 {[%clk 0:02:34]} 17. Qxb3 {[%clk 0:01:50]}  fxe4 {[%clk 0:02:19]} 18. fxe4 {[%clk 0:01:48]}  O-O {[%clk 0:02:20]} 19. Qe3 {[%clk 0:01:45]}  Kg7 {[%clk 0:02:19]} 20. Rhf1 {[%clk 0:01:42]}  Bxb5 {[%clk 0:02:09]} 21. cxb5 {[%clk 0:01:42]}  Qe7 {[%clk 0:02:10]} 22. b6 {[%clk 0:01:32]}  c6 {[%clk 0:02:02]} 23. dxc6 {[%clk 0:01:31]}  bxc6 {[%clk 0:02:03]} 24. b7 {[%clk 0:01:16]}  Rab8 {[%clk 0:01:59]} 25. Ba6 {[%clk 0:01:15]}  Ng4 {[%clk 0:01:49]} 26. Qb6 {[%clk 0:01:10]}  Rxf1 {[%clk 0:01:22]} 27. Rxf1 {[%clk 0:01:09]}  d5 {[%clk 0:01:16]} 28. Qxc6 {[%clk 0:01:03]}  d4 {[%clk 0:01:16]} 29. Qc8 {[%clk 0:00:58]}  Qd6 {[%clk 0:01:16]} 30. Qxg4 {[%clk 0:00:45]}  Qxa6 {[%clk 0:01:14]} 31. Qd7+ {[%clk 0:00:44]}  Kh6 {[%clk 0:01:14]} 32. Rf7 {[%clk 0:00:30]}  Qd3+ {[%clk 0:01:14]} 33. Kc1 {[%clk 0:00:30]}  Qe3+ {[%clk 0:01:15]} 34. Kd1 {[%clk 0:00:16]}  Qg1+ {[%clk 0:01:13]} 35. Kd2 {[%clk 0:00:16]}  Qxg2+ {[%clk 0:01:13]} 36. Kd3 {[%clk 0:00:16]}  Rxb7 {[%clk 0:00:32]} 37. Qxb7 {[%clk 0:00:12]}  Qh3+ {[%clk 0:00:33]} 38. Kc4 {[%clk 0:00:11]}  Qxh2 {[%clk 0:00:31]} 39. Rh7+ {[%clk 0:00:10]}  Kg5 {[%clk 0:00:32]} 40. Qe7+ {[%clk 0:00:10]}  Kg4 {[%clk 0:00:32]} 41. Qe6+ {[%clk 0:00:08]}  Kg5 {[%clk 0:00:28]} 42. Qe7+ {[%clk 0:00:06]}  Kg4 {[%clk 0:00:28]} 43. Qe6+ {[%clk 0:00:06]}  Kf4 {[%clk 0:00:20]} 44. Kd5 {[%clk 0:00:06]}  Ke3 {[%clk 0:00:17]} 45. Qxe5 {[%clk 0:00:06]}  Qxb2 {[%clk 0:00:16]} 46. Qg5+ {[%clk 0:00:03]}  Kd3 {[%clk 0:00:17]} 47. Rxh4 {[%clk 0:00:02]}  Qb5+ {[%clk 0:00:16]} 48. Ke6 {[%clk 0:00:01]}  Qxg5 {[%clk 0:00:17]} 49. e5 {[%clk 0:00:01]}  Qxh4 {[%clk 0:00:17]} 0-1


[Site "https://www.chess.com"]

[Event "Titled Tuesday Blitz December 20 Late 2022"]
[White "Melkumyan, Hrant"]
[Black "Young, Ryan"]
[WhiteFideId "13302485"]
[BlackFideId "2049945"]
[WhiteElo "2604"]
[BlackElo "2405"]
[Result "0-1"]
[Round "02"]
[TimeControl "180+1"]
[Date "2022.12.21"]
[WhiteClock "0:02:21"]
[BlackClock "0:01:57"]

1. c4 {[%clk 0:02:59]}  g6 {[%clk 0:02:58]} 2. e4 {[%clk 0:02:58]}  e5 {[%clk 0:02:58]} 3. d4 {[%clk 0:02:56]}  Bg7 {[%clk 0:02:55]} 4. dxe5 {[%clk 0:02:54]}  Bxe5 {[%clk 0:02:55]} 5. Nf3 {[%clk 0:02:54]}  Bg7 {[%clk 0:02:54]} 6. Nc3 {[%clk 0:02:54]}  Nc6 {[%clk 0:02:53]} 7. Bd3 {[%clk 0:02:53]}  d6 {[%clk 0:02:53]} 8. h3 {[%clk 0:02:53]}  Nge7 {[%clk 0:02:52]} 9. O-O {[%clk 0:02:53]}  O-O {[%clk 0:02:51]} 10. Bg5 {[%clk 0:02:49]}  h6 {[%clk 0:02:50]} 11. Be3 {[%clk 0:02:50]}  Be6 {[%clk 0:02:43]} 12. Qd2 {[%clk 0:02:49]}  Kh7 {[%clk 0:02:43]} 13. Rad1 {[%clk 0:02:48]}  Ne5 {[%clk 0:02:38]} 14. b3 {[%clk 0:02:48]}  Nxf3+ {[%clk 0:02:37]} 15. gxf3 {[%clk 0:02:49]}  Bxh3 {[%clk 0:02:37]} 16. Rfe1 {[%clk 0:02:48]}  Nc6 {[%clk 0:02:31]} 17. Bf1 {[%clk 0:02:40]}  Qh4 {[%clk 0:02:24]} 18. Nd5 {[%clk 0:02:28]}  Ne5 {[%clk 0:02:09]} 19. Qe2 {[%clk 0:02:28]}  Bxf1 {[%clk 0:02:02]} 20. Rxf1 {[%clk 0:02:21]}  Qh3 {[%clk 0:01:57]} 0-1


[Site "https://www.chess.com"]

[Event "Titled Tuesday Blitz December 20 Late 2022"]
[White "Migot, Tangi"]
[Black "Lacasa Diaz, Jose Antonio"]
[WhiteFideId "662445"]
[BlackFideId "2203375"]
[WhiteElo "2559"]
[BlackElo "2338"]
[Result "1-0"]
[Round "02"]
[TimeControl "180+1"]
[Date "2022.12.21"]
[WhiteClock "0:00:52"]
[BlackClock "0:00:09"]

1. d3 {[%clk 0:02:49]}  d5 {[%clk 0:02:57]} 2. Nf3 {[%clk 0:02:48]}  e6 {[%clk 0:02:56]} 3. g3 {[%clk 0:02:48]}  Nf6 {[%clk 0:02:57]} 4. Bg2 {[%clk 0:02:49]}  c5 {[%clk 0:02:57]} 5. O-O {[%clk 0:02:50]}  Nc6 {[%clk 0:02:57]} 6. b3 {[%clk 0:02:51]}  Be7 {[%clk 0:02:56]} 7. Bb2 {[%clk 0:02:51]}  b6 {[%clk 0:02:55]} 8. e3 {[%clk 0:02:52]}  Bb7 {[%clk 0:02:55]} 9. a3 {[%clk 0:02:53]}  Qc7 {[%clk 0:02:55]} 10. Nbd2 {[%clk 0:02:53]}  h6 {[%clk 0:02:49]} 11. Qe2 {[%clk 0:02:54]}  O-O-O {[%clk 0:02:43]} 12. c4 {[%clk 0:02:47]}  dxc4 {[%clk 0:02:37]} 13. Nxc4 {[%clk 0:02:44]}  h5 {[%clk 0:02:19]} 14. Rfc1 {[%clk 0:02:43]}  h4 {[%clk 0:02:13]} 15. b4 {[%clk 0:02:42]}  hxg3 {[%clk 0:02:06]} 16. hxg3 {[%clk 0:02:42]}  Kb8 {[%clk 0:01:53]} 17. bxc5 {[%clk 0:02:40]}  Bxc5 {[%clk 0:01:46]} 18. Nce5 {[%clk 0:02:06]}  Ba6 {[%clk 0:00:36]} 19. Nxc6+ {[%clk 0:01:40]}  Qxc6 {[%clk 0:00:36]} 20. Ne5 {[%clk 0:01:40]}  Qe8 {[%clk 0:00:24]} 21. Qf3 {[%clk 0:01:32]}  Rd5 {[%clk 0:00:20]} 22. d4 {[%clk 0:01:29]}  Bd6 {[%clk 0:00:18]} 23. e4 {[%clk 0:01:13]}  Ra5 {[%clk 0:00:10]} 24. Nc6+ {[%clk 0:01:12]}  Ka8 {[%clk 0:00:10]} 25. Nxa5 {[%clk 0:01:06]}  bxa5 {[%clk 0:00:10]} 26. d5 {[%clk 0:00:53]}  e5 {[%clk 0:00:09]} 27. Rc6 {[%clk 0:00:52]} 1-0


[Site "https://www.chess.com"]

[Event "Titled Tuesday Blitz December 20 Late 2022"]
[White "Mihajlov, Sebastian"]
[Black "Rustemov, Alexander"]
[WhiteFideId "1512110"]
[BlackFideId "4119002"]
[WhiteElo "2464"]
[BlackElo "2873"]
[Result "0-1"]
[Round "02"]
[TimeControl "180+1"]
[Date "2022.12.20"]
[WhiteClock "0:01:20"]
[BlackClock "0:01:42"]

1. e4 {[%clk 0:02:59]}  e6 {[%clk 0:03:00]} 2. d4 {[%clk 0:02:59]}  d5 {[%clk 0:03:00]} 3. Nc3 {[%clk 0:03:00]}  dxe4 {[%clk 0:03:01]} 4. Nxe4 {[%clk 0:03:01]}  Bd7 {[%clk 0:03:02]} 5. Nf3 {[%clk 0:03:01]}  Bc6 {[%clk 0:03:02]} 6. Bd3 {[%clk 0:03:02]}  Nd7 {[%clk 0:03:03]} 7. Qe2 {[%clk 0:03:01]}  Ngf6 {[%clk 0:03:04]} 8. Nxf6+ {[%clk 0:02:59]}  Nxf6 {[%clk 0:03:04]} 9. O-O {[%clk 0:02:55]}  Bxf3 {[%clk 0:03:04]} 10. Qxf3 {[%clk 0:02:55]}  Qd5 {[%clk 0:03:05]} 11. Qg3 {[%clk 0:02:51]}  Bd6 {[%clk 0:03:04]} 12. Qh4 {[%clk 0:02:39]}  Qh5 {[%clk 0:03:00]} 13. Bg5 {[%clk 0:02:35]}  Qxh4 {[%clk 0:02:58]} 14. Bxh4 {[%clk 0:02:36]}  Nd5 {[%clk 0:02:56]} 15. a3 {[%clk 0:02:31]}  Be7 {[%clk 0:02:53]} 16. Bg3 {[%clk 0:02:31]}  c6 {[%clk 0:02:53]} 17. Rad1 {[%clk 0:02:30]}  Rd8 {[%clk 0:02:53]} 18. c3 {[%clk 0:02:27]}  O-O {[%clk 0:02:52]} 19. Rfe1 {[%clk 0:02:27]}  Rd7 {[%clk 0:02:51]} 20. h3 {[%clk 0:02:26]}  Rfd8 {[%clk 0:02:51]} 21. Be4 {[%clk 0:02:23]}  b5 {[%clk 0:02:44]} 22. Bc2 {[%clk 0:02:14]}  a5 {[%clk 0:02:43]} 23. Be5 {[%clk 0:02:08]}  a4 {[%clk 0:02:39]} 24. c4 {[%clk 0:02:03]}  Nb6 {[%clk 0:02:35]} 25. cxb5 {[%clk 0:02:03]}  cxb5 {[%clk 0:02:35]} 26. Bd3 {[%clk 0:02:04]}  Nc4 {[%clk 0:02:30]} 27. Bxc4 {[%clk 0:02:04]}  bxc4 {[%clk 0:02:30]} 28. Rc1 {[%clk 0:02:04]}  Rc8 {[%clk 0:02:26]} 29. Rc2 {[%clk 0:02:02]}  f6 {[%clk 0:02:26]} 30. Bg3 {[%clk 0:02:01]}  Kf7 {[%clk 0:02:23]} 31. Rd1 {[%clk 0:01:58]}  Rd5 {[%clk 0:02:13]} 32. Kf1 {[%clk 0:01:57]}  e5 {[%clk 0:02:10]} 33. Rdc1 {[%clk 0:01:50]}  Rxd4 {[%clk 0:02:08]} 34. f3 {[%clk 0:01:51]}  Ke6 {[%clk 0:01:48]} 35. Bf2 {[%clk 0:01:51]}  Kd5 {[%clk 0:01:49]} 36. Bxd4 {[%clk 0:01:40]}  exd4 {[%clk 0:01:49]} 37. Re1 {[%clk 0:01:38]}  Bd6 {[%clk 0:01:49]} 38. Kf2 {[%clk 0:01:22]}  d3 {[%clk 0:01:49]} 39. Rd2 {[%clk 0:01:22]}  Bf4 {[%clk 0:01:44]} 40. Rdd1 {[%clk 0:01:22]}  Rb8 {[%clk 0:01:43]} 41. Rb1 {[%clk 0:01:20]}  Be5 {[%clk 0:01:42]} 0-1


[Site "https://www.chess.com"]

[Event "Titled Tuesday Blitz December 20 Late 2022"]
[White "Milikow, Yoav"]
[Black "Fiorito, Joaquin"]
[WhiteFideId "2822237"]
[BlackFideId "180173"]
[WhiteElo "2416"]
[BlackElo "2157"]
[Result "1-0"]
[Round "02"]
[TimeControl "180+1"]
[Date "2022.12.21"]
[WhiteClock "0:00:29"]
[BlackClock "0:00:10"]

1. d4 {[%clk 0:03:00]}  Nf6 {[%clk 0:02:59]} 2. c4 {[%clk 0:03:00]}  e6 {[%clk 0:03:00]} 3. Nc3 {[%clk 0:03:00]}  d5 {[%clk 0:02:56]} 4. cxd5 {[%clk 0:03:00]}  exd5 {[%clk 0:02:57]} 5. Bg5 {[%clk 0:03:00]}  c6 {[%clk 0:02:57]} 6. e3 {[%clk 0:03:00]}  Be7 {[%clk 0:02:56]} 7. Bd3 {[%clk 0:03:00]}  O-O {[%clk 0:02:54]} 8. Qc2 {[%clk 0:02:58]}  h6 {[%clk 0:02:53]} 9. Bh4 {[%clk 0:02:57]}  Re8 {[%clk 0:02:51]} 10. Nge2 {[%clk 0:02:56]}  Nbd7 {[%clk 0:02:47]} 11. O-O {[%clk 0:02:55]}  Nh5 {[%clk 0:02:47]} 12. Bxe7 {[%clk 0:02:48]}  Qxe7 {[%clk 0:02:48]} 13. Rae1 {[%clk 0:02:48]}  Ndf6 {[%clk 0:02:43]} 14. Nc1 {[%clk 0:02:46]}  g6 {[%clk 0:02:12]} 15. f3 {[%clk 0:02:44]}  Qd6 {[%clk 0:02:08]} 16. Nb3 {[%clk 0:02:41]}  a5 {[%clk 0:02:07]} 17. Na4 {[%clk 0:02:29]}  Ng7 {[%clk 0:01:43]} 18. Nb6 {[%clk 0:02:25]}  Rb8 {[%clk 0:01:38]} 19. Nxa5 {[%clk 0:02:20]}  Qb4 {[%clk 0:01:38]} 20. Qc5 {[%clk 0:02:15]}  Qxc5 {[%clk 0:01:09]} 21. dxc5 {[%clk 0:02:16]}  Bf5 {[%clk 0:01:07]} 22. Bxf5 {[%clk 0:02:11]}  Nxf5 {[%clk 0:01:08]} 23. Kf2 {[%clk 0:02:09]}  Re7 {[%clk 0:01:05]} 24. g4 {[%clk 0:02:03]}  Ng7 {[%clk 0:01:05]} 25. b4 {[%clk 0:02:02]}  Rbe8 {[%clk 0:01:04]} 26. Nb3 {[%clk 0:02:01]}  h5 {[%clk 0:01:04]} 27. h3 {[%clk 0:02:01]}  Ne6 {[%clk 0:01:04]} 28. Rh1 {[%clk 0:01:55]}  h4 {[%clk 0:00:58]} 29. Nd4 {[%clk 0:01:50]}  Ng5 {[%clk 0:00:57]} 30. a4 {[%clk 0:01:45]}  Nd7 {[%clk 0:00:48]} 31. a5 {[%clk 0:01:41]}  Nxb6 {[%clk 0:00:47]} 32. axb6 {[%clk 0:01:42]}  Kg7 {[%clk 0:00:46]} 33. b5 {[%clk 0:01:32]}  cxb5 {[%clk 0:00:44]} 34. Nxb5 {[%clk 0:01:33]}  Rc8 {[%clk 0:00:44]} 35. Nc7 {[%clk 0:01:21]}  Ne6 {[%clk 0:00:43]} 36. Nxd5 {[%clk 0:01:12]}  Rd7 {[%clk 0:00:44]} 37. Rd1 {[%clk 0:01:10]}  Rxc5 {[%clk 0:00:43]} 38. e4 {[%clk 0:01:11]}  Rc2+ {[%clk 0:00:42]} 39. Ke3 {[%clk 0:01:11]}  Rd6 {[%clk 0:00:39]} 40. Rc1 {[%clk 0:01:11]}  Rb2 {[%clk 0:00:37]} 41. Rc3 {[%clk 0:01:07]}  Nd8 {[%clk 0:00:36]} 42. f4 {[%clk 0:01:04]}  Nc6 {[%clk 0:00:35]} 43. f5 {[%clk 0:01:04]}  Ne5 {[%clk 0:00:31]} 44. Kf4 {[%clk 0:01:02]}  Nd7 {[%clk 0:00:29]} 45. Rc7 {[%clk 0:00:55]}  Nxb6 {[%clk 0:00:25]} 46. f6+ {[%clk 0:00:54]}  Kg8 {[%clk 0:00:20]} 47. Ne7+ {[%clk 0:00:53]}  Kh7 {[%clk 0:00:20]} 48. g5 {[%clk 0:00:48]}  Rd3 {[%clk 0:00:16]} 49. Nd5 {[%clk 0:00:33]}  Nxd5+ {[%clk 0:00:16]} 50. exd5 {[%clk 0:00:33]}  Rb4+ {[%clk 0:00:16]} 51. Ke5 {[%clk 0:00:33]}  Kg8 {[%clk 0:00:13]} 52. Rc8+ {[%clk 0:00:32]}  Kh7 {[%clk 0:00:13]} 53. Rf8 {[%clk 0:00:33]}  Re3+ {[%clk 0:00:09]} 54. Kd6 {[%clk 0:00:33]}  Rb6+ {[%clk 0:00:07]} 55. Kc7 {[%clk 0:00:33]}  Rb5 {[%clk 0:00:06]} 56. Rxf7+ {[%clk 0:00:33]}  Kg8 {[%clk 0:00:07]} 57. Rg7+ {[%clk 0:00:33]}  Kf8 {[%clk 0:00:08]} 58. Ra1 {[%clk 0:00:33]}  Rxd5 {[%clk 0:00:07]} 59. Ra8+ {[%clk 0:00:32]}  Re8 {[%clk 0:00:08]} 60. Rxe8+ {[%clk 0:00:30]}  Kxe8 {[%clk 0:00:09]} 61. Rxg6 {[%clk 0:00:31]}  b5 {[%clk 0:00:09]} 62. Kc6 {[%clk 0:00:29]}  Kf7 {[%clk 0:00:10]} 63. Rg7+ {[%clk 0:00:29]} 1-0


[Site "https://www.chess.com"]

[Event "Titled Tuesday Blitz December 20 Late 2022"]
[White "Moreno Perez, Tobias Sebastian"]
[Black "Rian, Kapriaga"]
[WhiteFideId "186716"]
[BlackFideId "7103263"]
[WhiteElo "2259"]
[BlackElo "2320"]
[Result "0-1"]
[Round "02"]
[TimeControl "180+1"]
[Date "2022.12.21"]
[WhiteClock "0:00:01"]
[BlackClock "0:00:03"]

1. Nf3 {[%clk 0:03:00]}  d5 {[%clk 0:02:59]} 2. g3 {[%clk 0:03:01]}  Nf6 {[%clk 0:02:59]} 3. Bg2 {[%clk 0:03:01]}  Bf5 {[%clk 0:02:59]} 4. O-O {[%clk 0:03:02]}  e6 {[%clk 0:02:59]} 5. b3 {[%clk 0:03:02]}  h6 {[%clk 0:02:57]} 6. Bb2 {[%clk 0:03:02]}  Be7 {[%clk 0:02:57]} 7. d3 {[%clk 0:03:00]}  O-O {[%clk 0:02:56]} 8. Nbd2 {[%clk 0:03:00]}  c5 {[%clk 0:02:54]} 9. e4 {[%clk 0:02:49]}  Bh7 {[%clk 0:02:53]} 10. Ne5 {[%clk 0:02:46]}  Nbd7 {[%clk 0:02:44]} 11. Nxd7 {[%clk 0:02:34]}  Qxd7 {[%clk 0:02:42]} 12. e5 {[%clk 0:02:35]}  Ne8 {[%clk 0:02:40]} 13. f4 {[%clk 0:02:34]}  Nc7 {[%clk 0:02:37]} 14. Kh1 {[%clk 0:02:33]}  b5 {[%clk 0:02:36]} 15. g4 {[%clk 0:02:26]}  Rab8 {[%clk 0:02:08]} 16. Qf3 {[%clk 0:02:11]}  c4 {[%clk 0:01:44]} 17. Rae1 {[%clk 0:02:04]}  Na6 {[%clk 0:01:37]} 18. f5 {[%clk 0:02:02]}  Bg5 {[%clk 0:01:35]} 19. Nb1 {[%clk 0:02:01]}  Nb4 {[%clk 0:01:19]} 20. Na3 {[%clk 0:01:31]}  cxd3 {[%clk 0:01:15]} 21. cxd3 {[%clk 0:01:30]}  Rbc8 {[%clk 0:00:58]} 22. Qg3 {[%clk 0:01:06]}  Qd8 {[%clk 0:00:32]} 23. f6 {[%clk 0:01:03]}  a6 {[%clk 0:00:27]} 24. h4 {[%clk 0:00:59]}  Bd2 {[%clk 0:00:26]} 25. Rd1 {[%clk 0:00:54]}  Bc3 {[%clk 0:00:26]} 26. Bc1 {[%clk 0:00:38]}  Qc7 {[%clk 0:00:24]} 27. d4 {[%clk 0:00:28]}  Qb6 {[%clk 0:00:20]} 28. fxg7 {[%clk 0:00:28]}  Kxg7 {[%clk 0:00:19]} 29. Qf4 {[%clk 0:00:28]}  Bg6 {[%clk 0:00:14]} 30. h5 {[%clk 0:00:26]}  Bxd4 {[%clk 0:00:11]} 31. hxg6 {[%clk 0:00:20]}  Rxc1 {[%clk 0:00:07]} 32. Qf6+ {[%clk 0:00:12]}  Kg8 {[%clk 0:00:06]} 33. gxf7+ {[%clk 0:00:12]}  Kh7 {[%clk 0:00:06]} 34. Rxc1 {[%clk 0:00:09]}  Nd3 {[%clk 0:00:05]} 35. Rcd1 {[%clk 0:00:05]}  Bxe5 {[%clk 0:00:05]} 36. Qf3 {[%clk 0:00:03]}  Nf4 {[%clk 0:00:05]} 37. Rde1 {[%clk 0:00:02]}  Bb8 {[%clk 0:00:04]} 38. Qd1 {[%clk 0:00:01]}  Qd6 {[%clk 0:00:03]} 39. Qb1+ {[%clk 0:00:02]}  Ng6 {[%clk 0:00:04]} 40. Rf6 {[%clk 0:00:01]}  Qh2# {[%clk 0:00:03]} 0-1


[Site "https://www.chess.com"]